{"text_format":"1","workbook":"xlsx","n_sheets":2,"sheets":["Kostenplan","Muster"],"not_rendered":{"charts":0,"images":0,"macros":1,"external_links":0,"defined_names":3,"comments":2,"pivot_tables":0},"unopened":[],"bounds":{"document_bytes":16777216,"sheet_cells":100000,"rows_first":2000,"rows_last":500,"rows_between":2000,"halvings":0,"cell_chars":16384,"cell_head_chars":4096},"cells_cut":0,"cells_raw":0,"read":"whole","date_system":"1900"}

{"sheet":"Kostenplan","index":0,"n_rows":58,"n_cols":11,"rows_kept":58,"cut":false,"hidden":false,"merged":[[53,0,53,10],[51,1,51,6],[44,1,44,7],[45,1,45,7],[46,1,46,7],[47,1,47,7],[48,0,48,7],[49,1,49,8],[4,5,4,10],[10,1,10,2],[10,5,10,6],[8,2,8,7],[8,8,8,9],[10,8,10,9],[6,4,6,5],[40,1,40,9],[41,1,41,7],[42,1,42,7],[43,1,43,7],[41,8,41,9]]}
["Finanzhilfe für Schulen in freier Trägerschaft nach §§ 149 ff. NSchG"]
["Kostenplan für vom Berufsförderungsdienst der Bundeswehr geförderte Lehrgangsteilnehmer/innen"]
[]
[]
["Schulnummer:",null,null,null,"Schule:"]
[]
["Az. RLSB Lüneburg:"]
[]
["Fachrichtung:",null,null,null,null,null,null,null,"Ausbildungsbeginn:"]
[]
["Name:",null,null,null,"Vorname:",null,null,null,"(geplantes) Ausbildungsende:"]
[]
[]
["1.","Monatliches Schulgeld für einen nicht geförderten Teilnehmer:"]
[]
[null,"Multipliziert mit der Anzahl der Ausbildungsmonate insgesamt:",null,null,null,null,null," Monate",{"$f":"IF(G17<>\"\",G17,G16)","v":0}]
[null,"(Auswahlliste oder abweichender und zu begründender Wert)",null,null,null,null,null," Monate"]
[null,"ergibt die von einem Teilnehmer zu tragenden Kosten in Höhe von:",null,null,null,null,null,null,{"$f":"IF(G17<>0,G14*G17,G14*G16)","v":0}," Euro"]
[]
[]
["2.","Hinzuzurechnender Schülerbetrag (maximal Wert nach FinHVO zu Beginn der",null,null,null,null,null,null," Euro"]
[null,"Ausbildung):"]
[]
[null,{"$f":"IF(AND(G16=\"\",G17=\"\"),\"\",IF(AND(G16<>0,G17=\"\"),\"ergibt für die Anzahl von \"&G16&\" Ausbildungsmonaten\",\"ergibt für die Anzahl von \"&G17&\" Ausbildungsmonaten\"))","v":""},null,null,null,null,null,null,{"$f":"IF(G17<>0,H21/12*G17,H21/12*G16)","v":0}," Euro"]
[]
["3.","Hinzuzurechnende Anmelde- und Prüfungsgebühren:",null,null,null,null,null,null,null," Euro"]
[]
["4.","Lehr- und Lernmittel, wenn von der Schule zur Verfügung gestellt:",null,null,null,null,null,null,null,"Euro"]
[]
[null,null,null,null,null,null,null,"Kosten nach Nr. 1, 3 und 4:",{"$f":"SUM(I18+I26+I28)","v":0}," Euro"]
[null,null,null,null,null,null,null,"Kosten nach Nr. 2:",{"$f":"I24","v":0}," Euro"]
[]
["Monatliche Lehrgangskosten somit (Kosten nach Nr. 2 dividiert durch Anzahl Ausbildungsmonate):",null,null,null,null,null,null,null,{"$f":"IF(OR(C9=\"\",K9=\"\",K11=\"\"),\"\",IF(ISERROR(I31/I16),\"\",ROUND(I31/I16,2)))","v":""}," Euro"]
[]
[null,null,null,null,null,null,null,null,null,null,"RLSB Lüneburg / FH /  Stand: 05/2016"]
[{"$f":"IF(OR(C9=\"\",B11=\"\",F11=\"\",K9=\"\",K11=\"\"),\"Berechnung zum Einsetzen der Finanzhilfe\",\"Berechnung zum Einsetzen der Finanzhilfe für \" & F11 & \" \" & B11)","v":"Berechnung zum Einsetzen der Finanzhilfe"}]
[{"$f":"IF(OR(C9=\"\",K9=\"\",K11=\"\"),\"\",C9&\" - vom \"&TEXT(K9,\"TT.MM.JJJJ\")&\" bis \" & TEXT(K11,\"TT.MM.JJJJ\"))","v":""}]
[]
["1.","Monatliche Lehrgangskosten nach Angaben des Schulträgers:",null,null,null,null,null,null,null,{"$f":"IF(I33=0,\"\",TEXT(I33,\"0.0,00\")&\" Euro\")","v":" Euro"}]
[]
["2.","Bewilligte Mittel lt. Bescheid des Berufsförderungsdienstes (nicht für vom Auszubildenden selbst zu beschaffende Lehr- und Lernmittel):"]
[null,"Art",null,null,null,null,null,null,"Betrag"]
[{"$f":"IF(B43<>\"\",\"a.\",\"\")","v":"a."},"Lehrgangskosten"]
[{"$f":"IF(B44<>\"\",\"b.\",\"\")","v":"b."},"Anmeldegebühr"]
[{"$f":"IF(B45<>\"\",\"c.\",\"\")","v":"c."},"Prüfungsgebühr"]
[{"$f":"IF(B46<>\"\",\"d.\",\"\")","v":""}]
[{"$f":"IF(B47<>\"\",\"e.\",\"\")","v":""}]
[{"$f":"IF(B48<>\"\",\"f.\",\"\")","v":""}]
[{"$f":"IF(I49<>0,\"Summe:\",\"\")","v":""},null,null,null,null,null,null,null,{"$f":"SUM(I41:I48)","v":0}]
[null,{"$f":"IF(OR(I49-SUM(I18+I26+I28)<=0,B43=\"\"),\"\",\"Verbleibende Mittel des BfD nach Abzug der auf Seite 1 ermittelten Beträge zu Nr. 1, 3 und 4 i.H.v. : \"&TEXT(I30,\"0.0,00 €\"))","v":""},null,null,null,null,null,null,null,{"$f":"IF(I49-SUM(I18+I26+I28)<=0,\"\",I49-SUM(I18+I26+I28))","v":""}]
[]
[{"$f":"IF(B52<>\"\",\"3.\",\"\")","v":""},{"$f":"IF(OR(I33=0,I49=0),\"\",IF(I52>=J52,\"Die Kosten der Ausbildung für \" &F11 &\" \" &B11 &\" werden bis zum Ende durch die Mittel des BfD gedeckt!\",IF(I52<=I30,\"Die Mittel des BfD reichen nicht oder gerade aus, um Schulgeld, Gebühren und Lehr- und Lernmittel zu decken. Sie erhalten daher für \" &F11 &\" \" &B11 &\" Finanzhilfe vom Beginn der Ausbildung an.\",\"Die für \" &F11 &\" \" &B11 &\" bewilligten Mittel des BfD werden verbraucht sein nach:\")))","v":""},null,null,null,null,null,{"$f":"IF(OR(I49=0,J50=0,J50>=I31),\"\",IF(ISERROR(ROUND(J50/I33,0)),\"\",IF(MOD(J50,I33)>0,ROUNDUP(J50/I33,0),J50/I33)&\" Monaten\"))","v":""},{"$f":"IF(ISERROR(I49+J50),I49,I49+I50)","v":0},{"$f":"I30+I31","v":0}]
[]
["Der Förderbescheid des Berufsförderungsdienstes liegt diesem Kostenplan bei. Sollte sich der Förderbescheid ändern, werde ich dem Regionalen Landesamt für Schule und Bildung Lüneburg (RLSB Lüneburg) umgehend eine Kopie weiterleiten. Ich versichere die Richtigkeit der vorstehenden Angaben."]
[]
[]
[]
["Datum, Unterschrift der/des Vertretungsberechtigten beim Schulträger",null,null,null,null,null,null,null,null,null,{"$f":"K35","v":"RLSB Lüneburg / FH /  Stand: 05/2016"}]

{"sheet":"Muster","index":1,"n_rows":58,"n_cols":11,"rows_kept":58,"cut":false,"hidden":false,"merged":[[53,0,53,10],[4,5,4,10],[6,4,6,5],[8,2,8,7],[8,8,8,9],[10,1,10,2],[10,5,10,6],[10,8,10,9],[51,1,51,6],[40,1,40,9],[41,1,41,7],[41,8,41,9],[42,1,42,7],[43,1,43,7],[44,1,44,7],[45,1,45,7],[46,1,46,7],[47,1,47,7],[48,0,48,7],[49,1,49,8]]}
["Finanzhilfe für Schulen in freier Trägerschaft nach §§ 149 ff. NSchG"]
["Kostenplan für vom Berufsförderungsdienst der Bundeswehr geförderte Lehrgangsteilnehmer/innen"]
[]
[]
["Schulnummer:",null,12345,null,"Schule:","Muster BBS"]
[]
["Az. RLSB Lüneburg:",null,null,null,"LG 1 F.__-81104_____"]
[]
["Fachrichtung:",null,"BFS Kaufmännischer Assistent Fremdsprachen / Korrespondenz",null,null,null,null,null,"Ausbildungsbeginn:",null,"2016-08-28"]
[]
["Name:","Mustermann",null,null,"Vorname:","Max",null,null,"(geplantes) Ausbildungsende:",null,"2018-07-14"]
[]
[]
["1.","Monatliches Schulgeld für einen nicht geförderten Teilnehmer:",null,null,null,null,75]
[]
[null,"Multipliziert mit der Anzahl der Ausbildungsmonate insgesamt:",null,null,null,null,24," Monate",{"$f":"IF(G17<>\"\",G17,G16)","v":24}]
[null,"(Auswahlliste oder abweichender und zu begründender Wert)",null,null,null,null,null," Monate"]
[null,"ergibt die von einem Teilnehmer zu tragenden Kosten in Höhe von:",null,null,null,null,null,null,{"$f":"IF(G17<>0,G14*G17,G14*G16)","v":1800}," Euro"]
[]
[]
["2.","Hinzuzurechnender Schülerbetrag (maximal Wert nach FinHVO zu Beginn der",null,null,null,null,null,3220," Euro"]
[null,"Ausbildung):"]
[]
[null,{"$f":"IF(AND(G16=\"\",G17=\"\"),\"\",IF(AND(G16<>0,G17=\"\"),\"ergibt für die Anzahl von \"&G16&\" Ausbildungsmonaten\",\"ergibt für die Anzahl von \"&G17&\" Ausbildungsmonaten\"))","v":"ergibt für die Anzahl von 24 Ausbildungsmonaten"},null,null,null,null,null,null,{"$f":"IF(G17<>0,H21/12*G17,H21/12*G16)","v":6440}," Euro"]
[]
["3.","Hinzuzurechnende Anmelde- und Prüfungsgebühren:",null,null,null,null,null,null,185," Euro"]
[]
["4.","Lehr- und Lernmittel, wenn von der Schule zur Verfügung gestellt:",null,null,null,null,null,null,250,"Euro"]
[]
[null,null,null,null,null,null,null,"Kosten nach Nr. 1, 3 und 4:",{"$f":"SUM(I18+I26+I28)","v":2235}," Euro"]
[null,null,null,null,null,null,null,"Kosten nach Nr. 2:",{"$f":"I24","v":6440}," Euro"]
[]
["Monatliche Lehrgangskosten somit (Kosten nach Nr. 2 dividiert durch Anzahl Ausbildungsmonate):",null,null,null,null,null,null,null,{"$f":"IF(OR(C9=\"\",K9=\"\",K11=\"\"),\"\",IF(ISERROR(I31/I16),\"\",ROUND(I31/I16,2)))","v":268.33}," Euro"]
[]
[null,null,null,null,null,null,null,null,null,null,{"$f":"Kostenplan!K35","v":"RLSB Lüneburg / FH /  Stand: 05/2016"}]
[{"$f":"IF(OR(C9=\"\",B11=\"\",F11=\"\",K9=\"\",K11=\"\"),\"Berechnung zum Einsetzen der Finanzhilfe\",\"Berechnung zum Einsetzen der Finanzhilfe für \" & F11 & \" \" & B11)","v":"Berechnung zum Einsetzen der Finanzhilfe für Max Mustermann"}]
[{"$f":"IF(OR(C9=\"\",K9=\"\",K11=\"\"),\"\",C9&\" - vom \"&TEXT(K9,\"TT.MM.JJJJ\")&\" bis \" & TEXT(K11,\"TT.MM.JJJJ\"))","v":"BFS Kaufmännischer Assistent Fremdsprachen / Korrespondenz - vom 28.08.2016 bis 14.07.2018"}]
[]
["1.","Monatliche Lehrgangskosten nach Angaben des Schulträgers:",null,null,null,null,null,null,null,{"$f":"IF(I33=0,\"\",TEXT(I33,\"0.0,00\")&\" Euro\")","v":"268,33 Euro"}]
[]
["2.","Bewilligte Mittel lt. Bescheid des Berufsförderungsdienstes (nicht für vom Auszubildenden selbst zu beschaffende Lehr- und Lernmittel):"]
[null,"Art",null,null,null,null,null,null,"Betrag"]
[{"$f":"IF(B43<>\"\",\"a.\",\"\")","v":"a."},"Lehrgangskosten",null,null,null,null,null,null,6000]
[{"$f":"IF(B44<>\"\",\"b.\",\"\")","v":"b."},"Anmeldegebühr",null,null,null,null,null,null,185]
[{"$f":"IF(B45<>\"\",\"c.\",\"\")","v":"c."},"Prüfungsgebühr",null,null,null,null,null,null,250]
[{"$f":"IF(B46<>\"\",\"d.\",\"\")","v":""}]
[{"$f":"IF(B47<>\"\",\"e.\",\"\")","v":""}]
[{"$f":"IF(B48<>\"\",\"f.\",\"\")","v":""}]
[{"$f":"IF(I49<>0,\"Summe:\",\"\")","v":"Summe:"},null,null,null,null,null,null,null,{"$f":"SUM(I41:I48)","v":6435}]
[null,{"$f":"IF(OR(I49-SUM(I18+I26+I28)<=0,B43=\"\"),\"\",\"Verbleibende Mittel des BfD nach Abzug der auf Seite 1 ermittelten Beträge zu Nr. 1, 3 und 4 i.H.v. : \"&TEXT(I30,\"0.0,00 €\"))","v":"Verbleibende Mittel des BfD nach Abzug der auf Seite 1 ermittelten Beträge zu Nr. 1, 3 und 4 i.H.v. : 2.235,00 €"},null,null,null,null,null,null,null,{"$f":"IF(I49-SUM(I18+I26+I28)<=0,\"\",I49-SUM(I18+I26+I28))","v":4200}]
[]
[{"$f":"IF(B52<>\"\",\"3.\",\"\")","v":"3."},{"$f":"IF(OR(I33=0,I49=0),\"\",IF(I52>=J52,\"Die Kosten der Ausbildung für \" &F11 &\" \" &B11 &\" werden bis zum Ende durch die Mittel des BfD gedeckt!\",IF(I52<=I30,\"Die Mittel des BfD reichen nicht oder gerade aus, um Schulgeld, Gebühren und Lehr- und Lernmittel zu decken. Sie erhalten daher für \" &F11 &\" \" &B11 &\" Finanzhilfe vom Beginn der Ausbildung an.\",\"Die für \" &F11 &\" \" &B11 &\" bewilligten Mittel des BfD werden verbraucht sein nach:\")))","v":"Die für Max Mustermann bewilligten Mittel des BfD werden verbraucht sein nach:"},null,null,null,null,null,{"$f":"IF(OR(I49=0,J50=0,J50>=I31),\"\",IF(ISERROR(ROUND(J50/I33,0)),\"\",IF(MOD(J50,I33)>0,ROUNDUP(J50/I33,0),J50/I33)&\" Monaten\"))","v":"16 Monaten"},{"$f":"IF(ISERROR(I49+J50),I49,I49+I50)","v":6435},{"$f":"I30+I31","v":8675}]
[]
["Der Förderbescheid des Berufsförderungsdienstes liegt diesem Kostenplan bei. Sollte sich der Förderbescheid ändern, werde ich dem Regionalen Landesamt für Schule und Bildung Lüneburg (RLSB Lüneburg) umgehend eine Kopie weiterleiten. Ich versichere die Richtigkeit der vorstehenden Angaben."]
[]
[]
[]
["Datum, Unterschrift der/des Vertretungsberechtigten beim Schulträger",null,null,null,null,null,null,null,null,null,{"$f":"K35","v":"RLSB Lüneburg / FH /  Stand: 05/2016"}]